{"text_format":"3","workbook":"xlsx","n_sheets":3,"sheets":["Sheet1","Sheet2","Sheet3"],"read":"whole","date_system":"1900"}

{"sheet":"Sheet1","index":0,"n_rows":107,"n_cols":9,"rows_kept":107,"merged":[[0,1,0,2]]}
[null,"Stock Position of Medicines of GVD/ GVH",{"$nulls":4},"As on Date"]
["Sr. No.","Name of the Medicine/Consumable","Brand Name","Pack Size","Opening Bal.","Received","Total","Used","Current Bal."]
[{"$nulls":4},1,2,3,4,5]
[1,"Inj. Amoxicillin + Cloxacllin (1.5 gm each)","Inj. Conmox","3 gm",null,null,{"$f":"SUM(E4,F4)","v":0},null,{"$f":"G4-H4","v":0}]
[2,"Inj. B Complex","Inj. Mecovet","30 ml",null,null,{"$f":"SUM(E5,F5)","v":0},null,{"$f":"G5-H5","v":0}]
[3,"Inj. Buparvaquone 50mg/ml","Inj. Zubion","20 ml",null,null,{"$f":"SUM(E6,F6)","v":0},null,0]
[4,"Inj. Calcium Magnesium Borogluconate","Inj. Calmex-M","450 ml",null,null,{"$f":"SUM(E7,F7)","v":0},null,0]
[5,"Inj. Ceftriaxone IP 3 gm+ Tazobactum 375 mg","Inj. Intacef-Tazo","3375 mg",null,null,{"$f":"SUM(E8,F8)","v":0},null,0]
[6,"Inj. Ceftriaxone IP each vial containing 3 gm","Inj. Cefstan","3 gm",null,null,{"$f":"SUM(E9,F9)","v":0},null,0]
[7,"Inj. Chloramphenicol 3 gm","Inj. Lykacetin","3gm",null,null,{"$f":"SUM(E10,F10)","v":0},null,0]
[8,"Inj. Dexamethasone","Inj. Curadex","10 ml",null,null,{"$f":"SUM(E11,F11)","v":0},null,0]
[9,"Inj. Diminazene Aceturate & Phenazone","Inj. Samorecide","30 ml",null,null,{"$f":"SUM(E12,F12)","v":0},null,0]
[10,"Inj. Enrofloxacin 10Qmg/ml","Inj. Quinintas","100 ml",null,null,{"$f":"SUM(E13,F13)","v":0},null,0]
[11,"Inj. Gentamycin Sulphate IP 40 mg/ml","Inj. Gentavet","100 ml",null,null,{"$f":"SUM(E14,F14)","v":0},null,0]
[12,"Inj. Ivermactin","Inj. Hitek","10 ml",null,null,{"$f":"SUM(E15,F15)","v":0},null,0]
[13,"Inj. Ketoprofen 100mg/ml","Inj. Butagesic-k","100 ml",null,null,{"$f":"SUM(E16,F16)","v":0},null,0]
[14,"Inj. Levamisole HCL B vet C 75 -c","Inj. Lemasol-75","30 ml",null,null,{"$f":"SUM(E17,F17)","v":0},null,0]
[15,"Inj. Lignocaine 2%","Inj. Xylocaine","30 ml",null,null,{"$f":"SUM(E18,F18)","v":0},null,0]
[16,"Inj. Meloxicam B.P. 5mg/ml","Inj. Zobid-M","100 ml",null,null,{"$f":"SUM(E19,F19)","v":0},null,0]
[17,"Inj. Oxytetracycline 200 mg/ ml (Long Acting)","Inj. Oxyietracycine","30 ml",null,null,{"$f":"SUM(E20,F20)","v":0},null,0]
[18,"Inj. Phenramin Malate","Inj. Avil","30 ml",null,null,{"$f":"SUM(E21,F21)","v":0},null,0]
[19,"Inj. Procain Penicillin G & Streptomycin Sulphate","Inj. Pensbiotic","2.5 gm",null,null,{"$f":"SUM(E22,F22)","v":0},null,0]
[20,"Inj. Quinapyramin Sulphate","Inj. Triquin-S","2 gm",null,null,{"$f":"SUM(E23,F23)","v":0},null,0]
[21,"Inj. Sodium Acid Phosphate BP Vet","Inj. Alphos","30 ml",null,null,{"$f":"SUM(E24,F24)","v":0},null,0]
[22,"Inj. Sodium Dimethylamino Methyl Phenyl Phosphonate","Inj. T-Phos","30 ml",null,null,{"$f":"SUM(E25,F25)","v":0},null,0]
[23,"Inj. Xylazine 20%","Inj. Xylodac","30 ml",null,null,{"$f":"SUM(E26,F26)","v":0},null,0]
[24,"Bolus Albendazole 1.5gm","Bolus Albidol","Strip of 4 bolus",null,null,{"$f":"SUM(E27,F27)","v":0},null,0]
[25,"Bolus Ciprofloxacin 1500 mg & Imidazole 180C mg","Bolus Curacin-TZ","Strip of 4 bolus",null,null,{"$f":"SUM(E28,F28)","v":0},null,0]
[25,"Bolus containing Cicsantel 1 gm","Bolus Zycloz","Strip of 4 bolus",null,null,{"$f":"SUM(E29,F29)","v":0},null,0]
[27,"Bolus Fenbendazole 1.5gm","Bolus Fenazole","Strip of 4 bolus",null,null,{"$f":"SUM(E30,F30)","v":0},null,0]
[28,"Bolus Morental Citrate 0.594 cm","Bolus Banminth","Strio of 4 bolus",null,null,{"$f":"SUM(E31,F31)","v":0},null,0]
[29,"Bolus Nitrofurazone IP 60 mg & Urea IP 6 gm","Bolus Furex","Strip of 4 bolus",null,null,{"$f":"SUM(E32,F32)","v":0},null,0]
[30,"Bolus Triclabendazole 900 mg & Levamisoie 562.5 mg","Bolus Endex","Strio of 4 bolus",null,null,{"$f":"SUM(E33,F33)","v":0},null,0]
[31,"Tablet Clomiphene Citrate & Copper Sulphate",null,"Strip of 5 tablets",null,null,{"$f":"SUM(E34,F34)","v":0},null,0]
[32,"Tablet Fenbendazole 150 mg","Tab. Fenazole","Strip of 10 tablets",null,null,{"$f":"SUM(E35,F35)","v":0},null,0]
[33,"Tablet Morental Citrate 118.8 mg","Tab. Banminth","Strip of 10 tablets",null,null,{"$f":"SUM(E36,F36)","v":0},null,0]
[34,"Liquid Morental Citrate 3% w/v","Oral Banminth Sol.","1 Litre",null,null,{"$f":"SUM(E37,F37)","v":0},null,0]
[35,"Liquid Oxyclozanide 3% & Levamisoie 1.5 %","Susp. Fasmin","1 Litre",null,null,{"$f":"SUM(E38,F38)","v":0},null,{"$f":"G38-H38","v":0}]
[36,"Liquid Triclabendazole 5% w/v","Fasinex","500 ml",null,null,{"$f":"SUM(E39,F39)","v":0},null,0]
[37,"Povidone Iodine Solution 10%",null,"500 ml",null,null,0,null,0]
[38,"Povidone Iodine Solution 5%",null,"5 Litre",null,null,0,null,0]
[39,"Solution Cypermethrin 10% E.C.","Sol. Glatox","1 Litre",null,null,0,null,0]
[40,"Solution Deltamethrin 12.5 ma/ ml","Sol. Deltacept","1 Litre",null,null,0,null,0]
[41,"Dextrose Inj. IP 25%","D25/ Rintose","500 ml",null,null,0,null,0]
[42,"Dextrose Inj. IP 10% w/v isotonic","D10","500 ml",null,null,0,null,0]
[43,"Dextrose Inj. IP 5% w/v isotonic","D5","500 ml",null,null,0,null,0]
[44,"Glucose 5% with Sodium Chloride 0.9% Inj.","DNS","500 ml",null,null,0,null,0]
[45,"Ringer's Lactate Solution for Inj.","RL","500 ml",null,null,0,null,0]
[46,"Sodium Chloride Inj. IP 0.9%","NS","500 ml",null,null,0,null,0]
[47,"Herbal Anti Bloat",null,"100 ml",null,null,0,null,0]
[48,"Herbal Antidiarroheal Powder",null,"1 Kg",null,null,0,null,0]
[49,"Herbal Antiseptic Ointment",null,"1 Kg",null,null,0,null,0]
[50,"Herbal Antiseptic Spray",null,"100 ml",null,null,0,null,0]
[51,"Herbal Expectorant Powder",null,"1 Kg",null,null,0,null,0]
[52,"Herbal Heat Inducer Capsules",null,"6 Caps",null,null,0,null,0]
[53,"Metabolic Stimulant & Hepatoprotective Bolus","Live-52 Bolus","4 Boli",null,null,0,null,0]
[54,"Rumen Function Modular & Appetite Corrective Powder","HB Strong","1 Kg",null,null,0,null,0]
[55,"Stomachic & General Tonic Powder","Natural Batisa","1 Kg",null,null,0,null,0]
[56,"Uterine Tonic & Ecbolic Bolus","Exapar Bolus","4 Boli x 1",null,null,0,null,0]
[57,"Mineral Mixture",null,"5 Kg",null,null,0,null,0]
[58,"Magnesium Sulphate",null,"1 Kg",null,null,0,null,0]
[59,"Glycerine Solution IP",null,"500 gm",null,null,0,null,0]
[60,"T.T. Oil",null,"20 Litre",null,null,0,null,0]
[61,"Phenyl",null,"20 Litre",null,null,0,null,0]
[62,"Sisel Rope",null,"Kg",null,null,0,null,0]
[63,"Disposable Cap",null,"50 Pieces box",null,null,0,null,0]
[64,"Disoosable Mask",null,"50 Pieces box",null,null,0,null,0]
[65,"Al Gloves",null,"each",null,null,0,null,0]
[66,"Disposable Surgical Rubber Gloves Size: 6",null,"Single Pair",null,null,0,null,0]
[67,"Dispcsabe Surgical Rubber Gloves Size: 6.5",null,"Single Pair",null,null,0,null,0]
[68,"Disposable Surgical Rubber Gloves Size: 7",null,"Single Pair",null,null,0,null,0]
[69,"Disposable Surgical Rubber Gloves Size: 7.5",null,"Single Pair",null,null,0,null,0]
[70,"Bandage 15 cm x 4m",null,"dozen",null,null,{"$f":"SUM(E73,F73)","v":0},null,{"$f":"G73-H73","v":0}]
[71,"Bandage 10 cm x 4m",null,"dozen",null,null,0,null,0]
[72,"Bandage 5 cm x 4m",null,"dozen",null,null,0,null,0]
[73,"Cotton Wool Absorbent (Surgical) IP",null,"500 gm",null,null,0,null,0]
[74,"Plaster of Paris bandage Size: 10 cm x 2.7 mt",null,"1 x 10 Rolls",null,null,0,null,0]
[75,"Plaster of Paris bandage Size: 15 cm x 2.7 mt",null,"1 x 10 Rolls",null,null,0,null,0]
[76,"Disposable Syringe 50 ml",null,"each",null,null,0,null,0]
[77,"Disposable Syringe without Needle- 20 ml",null,"each",null,null,0,null,0]
[78,"Disposable Syringe without Needle-10 ml",null,"each",null,null,0,null,0]
[79,"Disposable Syringe without Needle- 5 ml",null,"each",null,null,0,null,0]
[80,"Hypodermic Needle 16G",null,"each",null,null,0,null,0]
[81,"Hypodermic Needle 18G",null,"each",null,null,0,null,0]
[82,"Disposable infusion/perfusion( I.V. set)",null,"each",null,null,0,null,0]
[83,"Sterile I.V. Canula Size: 18",null,"each",null,null,0,null,0]
[84,"Sterile I.V. Canula Size: 20",null,"each",null,null,0,null,0]
[85,"Sterile I.V. Canula Size: 22",null,"each",null,null,0,null,0]
[86,"Sterile I.V. Canula Size: 24",null,"each",null,null,0,null,0]
[87,"Sterile Surgical Blade, Size: 11",null,"each",null,null,0,null,0]
[88,"Sterile Surgical Blade, Size: 15",null,"each",null,null,0,null,0]
[89,"Sterile Surgical Blade, Size: 20",null,"each",null,null,0,null,0]
[90,"Sterile Surgical Blade, Size: 22",null,"each",null,null,0,null,0]
[91,{"$nulls":5},0,null,0]
[92,{"$nulls":5},0,null,0]
[93,{"$nulls":5},0,null,0]
[94,{"$nulls":5},0,null,0]
[95,{"$nulls":5},0,null,0]
[96,{"$nulls":5},0,null,0]
[97,{"$nulls":5},0,null,0]
[98,{"$nulls":5},0,null,0]
[99,{"$nulls":5},0,null,0]
[100,{"$nulls":5},0,null,0]
[101,{"$nulls":5},0,null,0]
[102,{"$nulls":5},0,null,0]
[103,{"$nulls":5},0,null,0]
[104,{"$nulls":5},0,null,0]

{"sheet":"Sheet2","index":1,"n_rows":0,"n_cols":0,"rows_kept":0}

{"sheet":"Sheet3","index":2,"n_rows":0,"n_cols":0,"rows_kept":0}